bitfinex-derivatives/quotes_ETHF0:USTF0_20241007
["timestamp","ask_amount","ask_price","bid_price","bid_amount"]
[1728286866498,3.11211,2481.4,2481.0,0.28214]
[1728286867099,2.83,2481.4,2481.2,0.28213]
[1728286867298,0.3863,2481.5,2480.9,1.4464]
[1728286867500,0.3863,2481.5,2481.3,0.28211]
[1728286869796,0.3863,2481.5,2481.4,0.4133]
[1728286871397,3.2078,2481.9,2481.4,14.3219]
[1728286871591,3.2078,2481.9,2481.5,0.2821]
[1728286871791,3.2078,2481.9,2481.7,0.28207]
[1728286872405,3.2078,2481.9,2481.4,7.8844]
[1728286872704,3.2078,2481.9,2481.7,0.28207]
[1728286873191,6.0378,2481.9,2481.6,0.28208]
[1728286873394,6.0378,2481.9,2481.7,0.28207]
[1728286875204,6.0378,2481.9,2481.4,0.7976]
[1728286875398,6.0378,2481.9,2481.4,1.8466]
[1728286875604,6.0378,2481.9,2481.7,0.28207]
[1728286876695,6.0378,2481.9,2481.4,1.8466]
[1728286876894,6.0378,2481.9,2481.7,0.28207]
[1728286877094,6.0378,2481.9,2481.8,0.28206]
[1728286877402,6.0378,2481.9,2481.4,1.8466]
[1728286877403,6.0378,2481.9,2481.7,0.28207]
[1728286878105,6.0378,2481.9,2481.8,0.28206]
[1728286878903,6.0378,2481.9,2481.7,0.28206]
[1728286879096,6.0378,2481.9,2481.8,0.28206]
[1728286879298,3.2078,2481.9,2481.8,0.28206]
[1728286881093,3.2078,2481.9,2481.4,0.7976]
[1728286881294,6.31986,2481.9,2481.6,0.28208]
[1728286882097,6.0378,2481.9,2481.5,0.28209]
[1728286882405,6.0378,2481.9,2481.4,0.7976]
[1728286882700,6.0378,2481.9,2481.7,0.28207]
[1728286885098,6.0378,2481.9,2481.4,0.4133]
[1728286885099,4.31167,2481.8,2481.4,0.4133]
[1728286885306,3.2078,2481.9,2481.4,0.4133]
[1728286885503,0.4172,2481.7,2481.5,0.28209]
[1728286885801,0.4172,2481.7,2481.5,0.2821]
[1728286886899,4.4468,2481.7,2481.5,0.2821]
[1728286887094,4.4468,2481.7,2481.4,0.4133]
[1728286887304,0.69928,2481.7,2481.4,0.4133]
[1728286887499,1.12138,2481.7,2481.4,0.4133]
[1728286888402,2.83,2481.6,2481.4,0.4133]
[1728286888598,2.83,2481.6,2481.4,0.69541]
[1728286889006,2.83,2481.6,2481.4,0.4133]
[1728286889396,3.11209,2481.6,2481.4,0.4133]
[1728286893010,0.69928,2481.7,2481.4,0.6954]
[1728286895616,0.4172,2481.7,2481.4,0.4133]
[1728286896008,0.69928,2481.7,2481.4,0.6954]
[1728286898408,0.28209,2481.6,2481.4,0.6954]
[1728286898608,0.69928,2481.7,2481.4,0.6954]
[1728286898907,0.4172,2481.7,2481.4,0.4133]
[1728286899109,0.4172,2481.7,2481.6,0.28209]
[1728286899312,0.4172,2481.7,2481.6,0.79467445]
[1728286900516,0.4172,2481.7,2481.6,0.28209]
[1728286900820,0.4172,2481.7,2481.6,0.79464964]
[1728286902118,3.48985,2482.0,2481.8,0.28206]
[1728286902312,3.88775,2482.0,2481.9,0.4171]
[1728286902511,3.6057,2482.0,2481.9,0.4171]
[1728286903014,3.88774,2482.0,2481.9,0.4171]
[1728286904819,3.6057,2482.0,2481.9,0.4171]
[1728286905020,3.6057,2482.0,2481.9,0.69915]
[1728286905321,0.3979,2482.0,2481.9,0.69915]
[1728286908316,0.3979,2482.0,2481.9,0.4171]
[1728286909716,0.3979,2482.0,2481.9,0.69915]
[1728286909916,6.0378,2482.4,2481.9,0.4171]
[1728286910118,0.67721,2482.3,2482.0,0.28204]
[1728286910716,0.3952,2482.3,2481.9,0.4171]
[1728286911118,0.3952,2482.3,2482.2,0.28202]
[1728286911425,3.2078,2482.4,2482.0,0.3348]
[1728286911727,3.2078,2482.4,2482.1,0.51229981]
[1728286911917,3.48979,2482.4,2482.2,0.4059]
[1728286912116,3.4898,2482.4,2482.2,0.4059]
[1728286913524,3.2078,2482.4,2482.2,0.4059]
[1728286913925,3.4898,2482.4,2482.2,0.4059]
[1728286915039,3.2078,2482.4,2482.2,0.68791]
[1728286915425,3.2078,2482.4,2482.2,0.4059]
[1728286915826,3.2078,2482.4,2482.2,0.68791]
[1728286916720,3.4898,2482.4,2482.2,0.4059]
[1728286917921,10.0666,2482.4,2481.9,0.4171]
[1728286918136,0.28203,2482.1,2481.9,0.4171]
[1728286918336,0.3892,2482.0,2481.9,0.4171]
[1728286919226,0.3892,2482.0,2481.9,1.21117885]
[1728286919427,0.3892,2482.0,2481.9,0.4171]
[1728286919828,0.3892,2482.0,2481.9,0.69915]
[1728286929439,3.2078,2482.4,2482.2,0.28202]
[1728286929740,3.2078,2482.4,2482.3,0.397]
[1728286929741,0.28199,2482.4,2482.3,0.397]
[1728286929931,0.28197,2482.6,2482.3,0.397]
[1728286930135,0.28198,2482.5,2482.3,0.397]
[1728286930331,3.6306,2482.7,2482.3,0.397]
[1728286930643,0.4143,2482.4,2482.3,0.679]
[1728286932132,3.2078,2482.7,2482.5,0.28198]
[1728286932342,0.28194,2482.9,2482.6,0.28197]
[1728286932638,0.28194,2482.9,2482.7,0.4176]
[1728286933732,3.6266,2483.0,2482.7,0.4176]
[1728286933937,3.6266,2483.0,2482.7,0.69956]
[1728286933938,3.90853,2483.0,2482.7,0.69956]
[1728286934133,0.4188,2483.0,2482.9,0.28194]
[1728286934642,0.4188,2483.0,2482.7,6.4554]
[1728286934643,6.4616,2483.5,2483.0,0.28192]
[1728286934940,0.70069,2483.4,2482.8,0.3349]
[1728286935141,0.4188,2483.4,2483.2,0.2819]
[1728286935449,0.4188,2483.4,2483.3,0.3866]
[1728286935836,0.4188,2483.4,2483.3,0.66849]
[1728286936045,0.4188,2483.4,2483.3,4.69569]
[1728286936247,3.89954,2483.8,2483.4,0.28188]
[1728286936248,3.88084,2483.8,2483.4,0.28188]
[1728286936542,3.88084,2483.8,2483.3,0.3866]
[1728286936740,3.88084,2483.8,2483.3,0.66849]
[1728286936937,3.88084,2483.8,2483.4,0.28188]
[1728286937134,3.88084,2483.8,2483.3,0.66849]
[1728286937342,3.599,2483.8,2483.3,0.3866]
[1728286937551,0.28185,2483.7,2483.3,0.66849]
[1728286937737,3.88084,2483.8,2483.3,0.66849]
[1728286938043,3.599,2483.8,2483.3,0.3866]
[1728286938244,3.599,2483.8,2483.4,0.28188]
[1728286938245,3.88084,2483.8,2483.4,0.28188]
[1728286940045,0.28185,2483.7,2483.3,0.66848]
[1728286940751,3.599,2483.8,2483.3,0.66848]
[1728286940752,3.2078,2483.5,2483.3,0.3866]
[1728286941041,2.83,2483.4,2483.3,0.3866]
[1728286941247,6.8564,2483.4,2482.6,3.55754235]
[1728286941438,2.83,2483.0,2482.7,0.3974]
[1728286941637,3.11194,2483.0,2482.7,0.3974]
[1728286941837,3.48974,2482.9,2482.7,0.3974]
[1728286942242,0.4062,2482.8,2482.7,0.3974]
[1728286944838,3.2362,2482.8,2482.3,0.4032]
[1728286945040,0.28197,2482.7,2482.4,0.4236]
[1728286945550,3.2362,2482.8,2482.4,0.4236]
[1728286945752,3.51815,2482.8,2482.4,0.4236]
[1728286945935,3.51815,2482.8,2482.5,0.28198]
[1728286946141,3.51815,2482.8,2482.6,0.28196]
[1728286946142,0.4062,2482.8,2482.6,0.28196]
[1728286946453,0.4062,2482.8,2482.7,0.28196]
[1728286947250,0.4062,2482.8,2482.5,0.3987]
[1728286947551,0.4062,2482.8,2482.5,0.68068]
[1728286947753,0.4062,2482.8,2482.6,0.28197]
[1728286951451,0.68815,2482.8,2482.4,0.70558]
[1728286951756,0.68815,2482.8,2482.5,0.28198]
[1728286952153,0.28197,2482.6,2482.4,0.4236]
[1728286952455,2.83,2482.7,2482.4,0.4236]
[1728286952649,0.28198,2482.6,2482.4,0.4236]
[1728286953258,10.0658,2482.5,2481.3,3.2078]
[1728286953553,10.0658,2482.5,2480.6,3.2078]
[1728286953554,2.83,2481.4,2480.6,3.2078]
[1728286953749,2.83,2481.2,2480.8,3.48997]
[1728286953955,2.83,2481.2,2480.8,0.28217]
[1728286954249,2.83,2481.2,2480.9,0.28216]
[1728286954451,2.83,2481.2,2481.0,0.28215]
[1728286954650,3.2332,2481.3,2481.1,0.28214]
[1728286954852,3.2332,2481.3,2480.8,0.28218]
[1728286955155,3.2332,2481.3,2481.1,0.28213]
[1728286957145,3.2332,2481.3,2481.2,0.28213]
[1728286957346,3.2332,2481.3,2480.8,0.3349]
[1728286957561,3.2332,2481.3,2481.1,0.28213]
[1728286958459,6.0378,2481.5,2481.2,0.28213]
[1728286958663,6.0378,2481.5,2481.1,0.28214]
[1728286959253,6.3199,2481.5,2481.0,0.28214]
[1728286960456,6.3199,2481.5,2480.9,4.57835989]
[1728286960656,6.3199,2481.5,2481.1,0.28214]
[1728286961154,6.0378,2481.5,2481.0,0.28215]
[1728286961462,6.3199,2481.5,2481.1,0.28214]
[1728286962453,3.11213,2481.3,2480.8,0.28217]
[1728286962768,2.83,2481.1,2480.7,3.89238]
[1728286963059,2.83,2481.1,2480.7,0.68458]
[1728286963363,2.83,2481.1,2480.7,0.4024]
[1728286963565,2.83,2481.1,2480.7,0.68458]
[1728286964667,2.83,2481.1,2480.8,0.28217]
[1728286966866,2.83,2481.1,2480.7,0.68458]
[1728286966867,3.11214,2481.1,2480.7,0.68458]
[1728286967361,3.11214,2481.1,2480.8,0.28217]
[1728286967362,2.83,2481.1,2480.8,0.28217]
[1728286968467,3.11215,2481.1,2480.7,0.68459]
[1728286968966,2.83,2480.9,2480.7,0.4024]
[1728286969370,2.83,2480.9,2480.2,6.872]
[1728286969371,6.0378,2480.9,2480.0,7.5865903]
[1728286969559,2.83,2480.7,2480.4,0.28221]
[1728286970072,0.4041,2480.6,2480.5,0.28221]
[1728286971465,3.2078,2481.2,2480.5,20.59447898]
[1728286971666,3.2078,2481.2,2481.0,0.28214]
[1728286971962,3.2078,2481.2,2481.1,0.3951]
[1728286972466,6.0378,2481.2,2481.1,0.3951]
[1728286972670,10.0682,2481.2,2480.7,0.28218]
[1728286972872,6.0378,2481.2,2480.7,0.67728]
[1728286973173,6.0378,2481.2,2480.8,0.28217]
[1728286973464,6.0378,2481.2,2480.7,0.3951]
[1728286973668,6.0378,2481.2,2480.9,0.28216]
[1728286974267,6.0378,2481.2,2481.0,0.28215]
[1728286974467,6.0378,2481.2,2480.7,0.3951]
[1728286974971,6.0378,2481.2,2481.0,0.28215]
[1728286976768,3.2078,2481.2,2480.7,0.3951]
[1728286977073,3.2078,2481.2,2481.1,0.28214]
[1728286982177,0.70515,2481.9,2481.1,0.28214]
[1728286982178,0.806,2482.2,2481.4,0.28211]
[1728286982378,0.4025,2482.7,2482.0,2.83]
[1728286982586,0.4025,2482.7,2482.0,0.28204]
[1728286982780,0.68447,2482.7,2482.2,0.28201]
[1728286983880,0.4172,2482.6,2482.2,0.28201]
[1728286984283,0.4172,2482.6,2482.3,0.282]
[1728286986583,0.4172,2482.6,2482.0,2.83]
[1728286986787,0.4172,2482.6,2482.3,0.282]
[1728286988284,0.4172,2482.6,2482.1,0.28203]
[1728286988483,0.4172,2482.6,2482.4,0.28198]
[1728286989382,0.4172,2482.6,2482.4,0.28199]
[1728286990586,0.4172,2482.6,2482.5,0.28198]
[1728286990884,0.4025,2482.7,2482.6,0.28197]
[1728286991885,0.4025,2482.7,2482.5,3.88697]
[1728286992283,0.4025,2482.7,2482.5,3.2078]
[1728286992483,0.4025,2482.7,2482.2,0.28201]
[1728286992484,4.30997,2482.6,2482.2,0.28201]
[1728286992694,2.83,2482.4,2482.1,0.28203]
[1728286992885,4.0288,2482.3,2482.0,0.28203]
[1728286993090,0.7729,2482.3,2482.0,0.28203]
[1728286993391,0.4221,2482.2,2482.0,0.28203]
[1728286994995,6.8588,2482.1,2481.3,3.2078]
[1728286995292,2.83,2482.1,2481.7,0.28207]
[1728286995490,0.28204,2482.1,2481.7,0.28207]
[1728286996193,3.2521,2482.2,2481.6,0.28208]
[1728286996392,3.2521,2482.2,2481.4,2.83]
[1728286996693,0.28203,2482.1,2481.4,2.83]
[1728286996896,0.28203,2482.1,2481.3,3.6024]
[1728286996897,0.28204,2482.0,2481.6,3.11208]
[1728286997109,0.28204,2482.0,2481.6,0.28208]
[1728286999196,0.28204,2482.0,2481.5,3.48989]
[1728286999704,0.28204,2482.0,2481.6,0.28208]
[1728287000398,3.2078,2482.1,2481.5,3.2078]
[1728287000589,0.28205,2481.9,2481.5,3.48989]
[1728287002102,0.28205,2481.9,2481.5,0.28209]
[1728287002591,0.28205,2481.9,2481.5,3.48989]
[1728287002791,3.2078,2482.1,2481.5,3.48989]
[1728287002986,0.28206,2481.8,2481.5,3.48989]
[1728287004188,0.28206,2481.8,2481.5,3.2078]
[1728287007789,3.2078,2482.1,2481.5,3.2078]
[1728287007994,0.28207,2481.8,2481.5,3.2078]
[1728287008299,0.3943,2481.7,2481.5,3.2078]
[1728287008488,0.67637,2481.7,2481.5,3.2078]
[1728287009297,0.67637,2481.7,2481.4,0.2821]
[1728287009706,0.67637,2481.7,2481.5,3.2078]
[1728287012701,0.67637,2481.7,2481.3,3.50671]
[1728287012910,0.67637,2481.7,2481.5,3.2078]
[1728287013808,0.28209,2481.6,2481.5,3.2078]
[1728287014205,0.3943,2481.7,2481.3,0.3946]
[1728287014403,0.2821,2481.5,2481.3,0.3946]
[1728287014613,0.3943,2481.7,2481.3,0.3946]
[1728287014614,0.28211,2481.4,2481.3,0.3946]
[1728287015505,2.83,2481.4,2481.0,0.417]
[1728287015697,0.28213,2481.2,2481.1,0.4154]
[1728287016408,12.8604,2481.2,2480.6,0.3965]
[1728287016602,2.83,2480.8,2480.7,0.4154]
[1728287019608,3.11218,2480.8,2480.7,0.4154]
[1728287022308,0.28217,2480.9,2480.7,0.4154]
[1728287022805,1.09452,2481.3,2480.7,0.4154]
[1728287022806,0.3892,2481.3,2480.7,0.4154]
[1728287023011,0.28216,2481.0,2480.7,0.4154]
[1728287023608,3.597,2481.3,2480.7,0.4154]
[1728287023910,3.597,2481.3,2480.8,0.28218]
[1728287023911,0.28213,2481.2,2480.8,0.28218]
[1728287024106,3.597,2481.3,2480.8,0.61718]
[1728287024107,0.28214,2481.1,2480.8,0.61718]
[1728287024302,0.28214,2481.1,2480.8,0.335]
[1728287024504,0.28216,2481.0,2480.8,0.335]
[1728287024710,0.28215,2481.1,2480.8,0.335]
[1728287026715,0.28215,2481.1,2480.8,3.5428]
[1728287026911,0.28215,2481.1,2480.8,3.82498]
[1728287027312,0.28215,2481.1,2480.8,3.5428]
[1728287028717,0.28214,2481.2,2480.8,3.82497]
[1728287029612,0.28215,2481.1,2480.8,3.82497]
[1728287030014,4.0304,2481.0,2480.4,3.2078]
[1728287030206,0.28226,2480.1,2479.6,0.48779493]
[1728287030411,3.11226,2480.1,2479.8,0.4028]
[1728287031214,3.11226,2480.1,2479.6,3.2078]
[1728287032012,3.11226,2480.1,2479.6,3.49011]
[1728287032213,3.11226,2480.1,2479.6,3.2078]
[1728287032906,3.11226,2480.1,2479.6,3.49011]
[1728287034010,3.11226,2480.1,2479.7,0.2823]
[1728287034321,3.11226,2480.1,2479.6,3.49011]
[1728287034915,0.28226,2480.1,2479.7,0.28229]
[1728287035124,0.28226,2480.1,2479.7,0.61729]
[1728287035418,2.83,2480.5,2480.0,4.51427]
[1728287035613,2.83,2480.5,2480.1,0.4249]
[1728287035917,0.28223,2480.4,2480.1,3.2549]
[1728287036121,6.4581,2480.7,2480.2,0.28224]
[1728287036122,0.2822,2480.6,2480.2,0.28224]
[1728287036511,6.4581,2480.7,2480.1,3.2549]
[1728287036707,6.4581,2480.7,2480.1,0.70715]
[1728287036708,0.28222,2480.5,2480.1,0.70715]
[1728287037322,0.28222,2480.4,2480.1,0.4249]
[1728287037822,0.28222,2480.5,2480.1,0.70715]
[1728287038615,0.28221,2480.6,2480.3,0.28223]
[1728287039019,0.28221,2480.6,2480.2,0.28224]
[1728287040316,6.4581,2480.7,2480.1,0.4249]
[1728287040518,0.28222,2480.4,2480.1,0.4249]
[1728287041217,6.4581,2480.7,2480.1,0.4249]
[1728287041523,0.28223,2480.4,2480.1,0.4249]
[1728287042223,0.28223,2480.4,2480.1,0.70716]
[1728287042420,0.28223,2480.4,2480.1,0.4249]
[1728287042633,0.28223,2480.4,2480.1,0.70716]
[1728287044525,0.28224,2480.3,2480.0,0.2]
[1728287045027,0.4143,2480.2,2480.0,3.4078]
[1728287045221,0.4143,2480.2,2480.0,3.69006]
[1728287045427,0.4143,2480.2,2480.1,4.032]
[1728287046222,0.4143,2480.2,2480.1,4.31426]
[1728287046421,0.4143,2480.2,2480.1,4.032]
[1728287046924,2.83,2480.5,2480.1,4.31426]
[1728287047124,2.83,2480.5,2480.1,0.28226]
[1728287047325,2.83,2480.5,2480.2,0.28224]
[1728287047922,2.83,2480.5,2480.3,0.4169]
[1728287049223,2.83,2480.5,2480.3,0.69913]
[1728287052532,2.83,2480.5,2480.4,0.28222]
[1728287053937,2.83,2480.5,2480.3,0.4169]
[1728287054145,2.83,2480.5,2480.3,0.69912]
[1728287054641,2.83,2480.5,2480.4,0.28222]
[1728287055537,2.83,2480.5,2480.3,0.69913]
[1728287057432,3.11222,2480.5,2480.3,0.4169]
[1728287057846,0.28222,2480.4,2480.3,0.4169]
[1728287059046,3.11222,2480.5,2480.3,0.4169]
[1728287066853,2.83,2480.5,2480.3,0.69913]
[1728287067751,2.83,2480.5,2480.3,0.4169]
[1728287067954,2.83,2480.5,2480.3,0.69913]
[1728287069356,2.83,2480.5,2480.3,0.69912]
[1728287069557,2.83,2480.5,2480.4,0.28222]
[1728287070757,2.83,2480.5,2480.4,0.67222]
[1728287071559,3.6097,2480.7,2480.5,0.28221]
[1728287071755,3.6097,2480.7,2480.6,0.2822]
[1728287071756,0.4019,2480.7,2480.6,0.2822]
[1728287072152,2.83,2481.0,2480.6,4.0312]
[1728287072355,0.66677,2480.9,2480.6,0.28219]
[1728287072561,1.31,2480.7,2480.6,0.28219]
[1728287072751,1.31,2480.7,2480.6,0.79446882]
[1728287075354,1.31,2480.7,2480.6,0.79474217]
[1728287076961,1.59219,2480.7,2480.6,0.51255217]
[1728287077259,1.59219,2480.7,2480.3,0.28223]
[1728287077462,0.2822,2480.6,2480.4,0.51279643]
[1728287077661,0.2822,2480.6,2480.3,0.28223]
[1728287077867,1.59222,2480.4,2480.1,0.28225]
[1728287078054,1.59222,2480.4,2480.2,0.51281519]
[1728287078055,0.28222,2480.4,2480.2,0.51281519]
[1728287078252,0.28222,2480.4,2480.3,0.51281519]
[1728287078755,0.28222,2480.4,2480.1,0.28225]
[1728287078956,1.31,2480.2,2480.1,0.28225]
[1728287079164,1.31,2480.2,2480.1,0.795196]
[1728287080861,1.31,2480.2,2480.1,0.79548253]
[1728287081969,1.31,2480.3,2480.1,4.54523253]
[1728287082166,1.31,2480.3,2480.2,0.28224]
[1728287082369,1.31,2480.3,2480.2,0.79559949]
[1728287082670,1.31,2480.3,2480.2,0.28224]
[1728287082866,1.31,2480.3,2480.2,0.79561069]
[1728287083671,0.395,2480.5,2480.3,0.28223]
[1728287083865,1.705,2480.5,2480.4,0.51337069]
[1728287084064,1.705,2480.5,2480.4,0.79559069]
[1728287084460,0.395,2480.5,2480.4,0.79559069]
[1728287084769,0.395,2480.5,2480.4,0.51337069]
[1728287085065,2.83,2480.6,2480.5,0.28221]
[1728287085270,0.28218,2480.8,2480.5,1.21718069]
[1728287085463,0.4032,2480.9,2480.5,1.21718069]
[1728287085464,2.83,2480.7,2480.6,0.51337069]
[1728287085665,2.83,2480.7,2480.5,0.70381]
[1728287085864,2.83,2480.7,2480.6,0.51330634]
[1728287086266,3.11219,2480.7,2480.6,0.51330634]
[1728287086575,2.83,2480.7,2480.6,0.51330634]
[1728287087375,3.11219,2480.7,2480.5,0.4216]
[1728287087563,3.11219,2480.7,2480.6,0.51330738]
[1728287087763,2.83,2480.7,2480.6,0.51330738]
[1728287089176,2.83,2480.7,2480.6,0.51329614]
[1728287090070,2.83,2480.7,2480.6,0.79549614]
[1728287090273,2.83,2480.7,2480.6,0.51329614]
[1728287093874,2.83,2480.7,2480.6,0.79549614]
[1728287095979,3.11219,2480.7,2480.6,0.51329614]
[1728287096178,7.14339,2480.7,2480.6,0.51329614]
[1728287099378,7.14339,2480.7,2480.4,0.28222]
[1728287099683,2.83,2480.5,2480.4,0.28222]
[1728287099879,2.83,2480.5,2480.4,0.79561953]
[1728287100182,3.2224,2480.5,2480.4,0.79561953]
[1728287100778,3.2224,2480.5,2480.4,0.51339953]
[1728287100981,3.2224,2480.5,2480.4,0.79561953]
[1728287101292,3.2224,2480.5,2480.4,0.51339953]
[1728287101470,3.2224,2480.5,2480.4,0.79561953]
[1728287101874,3.2224,2480.5,2480.4,0.51339953]
[1728287102074,3.2224,2480.5,2480.3,0.28223]
[1728287102276,3.2224,2480.5,2480.4,0.51339127]
[1728287104087,3.2224,2480.5,2480.4,0.79561127]
[1728287104584,1.7024,2480.5,2480.4,0.51339127]
[1728287105387,5.7336,2480.5,2480.4,0.79561127]
[1728287106684,5.7336,2480.5,2480.4,0.51339127]
[1728287106885,5.7336,2480.5,2480.4,0.79561127]
[1728287107090,5.7336,2480.5,2480.4,0.51339127]
[1728287108877,5.7336,2480.5,2480.4,0.79561127]
[1728287109282,5.7336,2480.5,2480.4,0.51339127]
[1728287110687,6.01581,2480.5,2480.4,0.51339127]
[1728287111293,9.22361,2480.5,2480.4,0.51339127]
[1728287112090,9.22361,2480.5,2480.4,0.51339621]
[1728287112388,9.22361,2480.5,2480.2,0.4239]
[1728287112389,0.28222,2480.4,2480.2,0.4239]
[1728287112584,1.31,2480.3,2480.2,0.4239]
[1728287112780,1.31,2480.3,2480.2,0.93726951]
[1728287114483,1.59223,2480.3,2480.2,0.93726951]
[1728287114683,1.31,2480.3,2480.2,0.93726951]
[1728287115386,1.31,2480.3,2480.2,0.93719872]
[1728287115586,1.31,2480.3,2480.2,1.21943872]
[1728287116996,3.6002,2480.5,2480.2,0.93719872]
[1728287117183,1.59219,2480.7,2480.4,0.28222]
[1728287117384,0.28219,2480.7,2480.5,0.93889872]
[1728287117599,1.31,2480.6,2480.5,0.4256]
[1728287117894,1.5922,2480.6,2480.5,0.93879476]
[1728287118093,1.5922,2480.6,2480.5,0.51319476]
[1728287118693,0.28222,2480.5,2480.3,0.4256]
[1728287118890,1.31,2480.4,2480.3,0.70783]
[1728287119090,1.31,2480.4,2480.3,1.22106378]
[1728287119799,1.31,2480.5,2480.4,0.28222]
[1728287120097,1.31,2480.5,2480.4,1.13075378]
[1728287122390,1.31,2480.5,2480.4,0.28222]
[1728287122597,5.3412,2480.5,2480.4,0.51334994]
[1728287124096,1.31,2480.5,2480.4,0.51334994]
[1728287124295,8.83121,2480.5,2480.4,0.51334994]
[1728287124491,8.549,2480.5,2480.0,0.48226]
[1728287124697,1.31,2480.1,2480.0,0.48226]
[1728287124894,1.31,2480.1,2480.0,0.99566104]
[1728287125700,1.59226,2480.1,2480.0,0.71340104]
[1728287126293,4.80006,2480.1,2480.0,0.71340104]
[1728287128605,4.5178,2480.1,2480.0,0.71340104]
[1728287128803,0.28224,2480.3,2480.0,0.71340104]
[1728287129003,1.31,2480.1,2480.0,0.2]
[1728287129301,1.31,2480.1,2480.0,0.71307894]
[1728287129507,1.31,2480.1,2480.0,0.71306592]
[1728287129803,1.59226,2480.1,2480.0,0.71306592]
[1728287130003,4.80006,2480.1,2480.0,0.71306592]
[1728287130401,4.5178,2480.1,2480.0,0.71306592]
[1728287130906,4.80006,2480.1,2480.0,0.71306592]
[1728287131395,1.59226,2480.1,2480.0,0.71306592]
[1728287131596,4.80006,2480.1,2480.0,0.2]
[1728287132201,4.5178,2480.1,2480.0,0.2]
[1728287135309,0.4152,2480.4,2480.0,4.232]
[1728287135608,1.31,2480.4,2480.3,0.28223]
[1728287135816,1.31,2480.4,2480.3,0.79498863]
[1728287136106,1.31,2480.4,2480.3,0.28223]
[1728287136310,1.31,2480.4,2480.3,0.79493801]
[1728287136812,1.31,2480.4,2480.3,0.51270801]
[1728287137211,1.31,2480.4,2480.3,0.90720801]
[1728287137803,1.31,2480.4,2480.3,1.18943801]
[1728287138816,3.6073,2480.7,2480.3,0.90720801]
[1728287139020,1.31,2480.5,2480.4,0.79492801]
[1728287139217,0.0312,2480.5,2480.4,1.13052801]
[1728287139411,0.0312,2480.5,2480.4,5.16172801]
[1728287139814,0.0312,2480.5,2480.4,5.16171563]
[1728287140918,0.0312,2480.5,2480.4,1.13051563]
[1728287143119,0.0312,2480.5,2480.4,1.13044799]
[1728287143319,0.0312,2480.5,2480.4,0.79484799]
[1728287143645,0.0312,2480.5,2480.4,0.28222]
[1728287143921,0.0312,2480.5,2480.4,0.79484522]
[1728287146734,0.0312,2480.5,2480.4,0.79480885]
[1728287148431,0.0312,2480.5,2480.4,0.28222]
[1728287149732,0.0312,2480.5,2480.4,0.79476164]
[1728287150236,0.0312,2480.5,2480.4,0.51254164]
[1728287150729,0.0312,2480.5,2480.4,0.79476164]
[1728287151545,0.0312,2480.5,2480.4,0.28222]
[1728287153632,0.0312,2480.5,2480.4,0.79473228]
[1728287154035,0.0312,2480.5,2480.4,0.79472917]
[1728287155729,0.405,2480.7,2480.6,0.2822]
[1728287155928,1.715,2480.7,2480.6,0.2822]
[1728287159039,1.715,2480.7,2480.6,0.79460523]
[1728287159441,1.715,2480.7,2480.6,0.2822]
[1728287159736,1.31,2480.7,2480.6,0.79458337]
[1728287160733,1.31,2480.7,2480.6,0.2822]
[1728287161041,1.31,2480.7,2480.6,0.79456884]
[1728287165636,0.3842,2480.9,2480.6,0.51236884]
[1728287165935,1.31,2480.8,2480.7,0.28219]
[1728287169647,3.2078,2481.4,2480.7,4.54328822]
[1728287169844,3.2078,2481.4,2480.8,1.68228822]
[1728287169845,1.31,2481.0,2480.8,1.68228822]
[1728287170042,1.31,2481.0,2480.9,0.79422904]
[1728287170243,1.31,2481.0,2480.9,0.28216]
[1728287170740,1.31,2481.0,2480.9,0.79414616]
[1728287170936,1.31,2481.0,2480.9,0.79413621]
[1728287172143,1.31,2481.1,2481.0,0.28215]
[1728287172541,1.31,2481.1,2481.0,4.31255]
[1728287173445,0.7866,2481.4,2481.1,0.28213]
[1728287173641,1.31,2481.2,2481.1,0.28213]
[1728287174644,0.4002,2481.4,2481.3,0.28212]
[1728287174847,1.7102,2481.4,2481.3,0.28212]
[1728287185754,0.4002,2481.4,2481.3,0.28212]
[1728287185947,1.7102,2481.4,2481.3,0.79380424]
[1728287187256,1.7102,2481.4,2481.3,0.28212]
[1728287190450,1.7102,2481.4,2480.9,0.2057253]
[1728287190649,1.31,2481.0,2480.8,0.68477]
[1728287190843,0.8214,2480.9,2480.8,0.68477]
[1728287193249,0.8214,2480.9,2480.5,3.2078]
[1728287193545,0.8214,2480.9,2480.6,0.79388136]
[1728287193546,1.31,2480.7,2480.6,0.79388136]
[1728287193957,1.31,2480.7,2480.6,4.82508136]
[1728287194357,1.31,2480.7,2480.6,4.54288136]
[1728287194658,1.31,2480.7,2480.6,4.82508136]
[1728287194959,1.31,2480.7,2480.6,4.3134]
[1728287195257,1.31,2480.7,2480.6,4.54292429]
[1728287195463,1.31,2480.7,2480.6,4.82515218]
[1728287195760,1.31,2480.7,2480.6,4.82515094]
[1728287195954,1.31,2480.7,2480.6,4.3134]
[1728287196157,1.31,2480.7,2480.6,0.2822]
[1728287197859,1.31,2480.7,2480.4,0.4026]
[1728287198054,1.31,2480.7,2480.5,0.79401486]
[1728287198361,1.31,2480.7,2480.5,0.2822]
[1728287199059,1.31,2480.7,2480.4,0.68481]
[1728287199254,1.7166,2480.7,2480.4,0.68481]
[1728287199561,1.31,2480.5,2480.3,3.49003]